bitfinex-derivatives/quotes_SOLF0:USTF0_20260217
["timestamp","ask_amount","ask_price","bid_price","bid_amount"]
[1771340168026,3.9589155,83.159,83.09,9.85750904]
[1771340168332,10.8292,83.154,83.09,9.85750904]
[1771340168532,10.8292,83.154,83.091,3.64814833]
[1771340168824,75.6,83.179,83.091,3.64814833]
[1771340169029,257.53863137,83.196,83.13,6.20936071]
[1771340169326,8.30103997,83.25,83.1,6.20936071]
[1771340169327,10.8221,83.209,83.15,6.20936071]
[1771340169528,3.9589155,83.227,83.151,3.64814833]
[1771340169727,75.6,83.239,83.17,6.20936071]
[1771340169922,3.9589155,83.249,83.171,3.64814833]
[1771340170137,6.20936071,83.25,83.171,3.64814833]
[1771340170330,3.9589155,83.249,83.171,3.64814833]
[1771340170518,3.9589155,83.229,83.14,6.20936071]
[1771340170718,3.9589155,83.227,83.141,3.64814833]
[1771340171136,10.824,83.194,83.141,3.64814833]
[1771340171429,6.20936071,83.21,83.141,3.64814833]
[1771340171637,10.821,83.218,83.141,3.64814833]
[1771340172228,10.821,83.218,83.084,168.5968]
[1771340172229,3.9589155,83.249,83.18,6.20936071]
[1771340172527,3.9589155,83.271,83.201,3.64814833]
[1771340172732,3.9589155,83.292,83.201,3.64814833]
[1771340173023,3.9589155,83.279,83.2,6.20936071]
[1771340173424,6.20936071,83.26,83.181,3.64814833]
[1771340173623,3.9589155,83.259,83.181,3.64814833]
[1771340174226,3.9589155,83.281,83.203,3.64814833]
[1771340174434,3.7926238,83.289,83.203,3.64814833]
[1771340174620,75.62,83.3,83.23,6.20936071]
[1771340174823,75.62,83.3,83.224,3.94703523]
[1771340174824,3.7926238,83.289,83.201,3.94703523]
[1771340175635,3.7926238,83.289,83.202,3.94703523]
[1771340175636,6.20936071,83.27,83.202,3.94703523]
[1771340176025,10.00198451,83.27,83.202,3.94703523]
[1771340176225,6.20936071,83.25,83.18,6.20936071]
[1771340176421,10.00198451,83.25,83.18,6.20936071]
[1771340176623,3.7926238,83.273,83.181,3.94703523]
[1771340176826,6.20936071,83.27,83.201,3.94703523]
[1771340177026,3.7926238,83.269,83.201,3.94703523]
[1771340177425,6.20936071,83.25,83.18,6.20936071]
[1771340177627,3.7926238,83.249,83.18,6.20936071]
[1771340178033,6.20936071,83.23,83.16,6.20936071]
[1771340178328,75.6,83.267,83.16,6.20936071]
[1771340178329,6.20936071,83.25,83.161,3.94703523]
[1771340178538,6.20936071,83.25,83.151,75.6]
[1771340178539,14.6097238,83.248,83.17,10.15639594]
[1771340178734,3.7926238,83.248,83.171,3.94703523]
[1771340179132,6.20936071,83.25,83.181,3.94703523]
[1771340179526,3.7926238,83.249,83.159,3.94703523]
[1771340179730,3.7926238,83.249,83.108,36.14]
[1771340179731,10.8198,83.226,83.161,3.94703523]
[1771340181033,3.7926238,83.229,83.161,3.94703523]
[1771340182033,10.00198451,83.27,83.181,3.94703523]
[1771340182235,3.7926238,83.269,83.181,3.94703523]
[1771340182535,10.8169,83.249,83.181,3.94703523]
[1771340182742,10.00198451,83.25,83.181,3.94703523]
[1771340182938,3.7926238,83.249,83.181,3.94703523]
[1771340183134,3.7926238,83.269,83.181,3.94703523]
[1771340183828,3.7926238,83.269,83.15,6.20936071]
[1771340183829,3.7926238,83.269,83.201,3.94703523]
[1771340184034,10.00198451,83.29,83.201,3.94703523]
[1771340184231,3.7926238,83.289,83.22,6.20936071]
[1771340184429,10.8128,83.28,83.22,6.20936071]
[1771340184635,3.7926238,83.289,83.22,6.20936071]
[1771340185432,3.7926238,83.269,83.201,3.94703523]
[1771340185829,10.00198451,83.29,83.201,3.94703523]
[1771340186036,10.00198451,83.29,83.204,3.94703523]
[1771340186037,10.813,83.279,83.204,3.94703523]
[1771340186239,10.813,83.279,83.22,10.15639594]
[1771340186431,10.00198451,83.29,83.221,3.94703523]
[1771340186846,3.7926238,83.29,83.221,3.94703523]
[1771340187036,3.7926238,83.312,83.241,3.94703523]
[1771340187553,10.8101,83.301,83.241,3.94703523]
[1771340187745,3.7926238,83.312,83.241,3.94703523]
[1771340188148,10.8101,83.302,83.241,3.94703523]
[1771340188343,3.7926238,83.312,83.241,3.94703523]
[1771340188548,6.20936071,83.31,83.241,3.94703523]
[1771340188749,3.7926238,83.309,83.241,3.94703523]
[1771340189051,10.812,83.287,83.241,3.94703523]
[1771340189245,10.812,83.287,83.22,10.15639594]
[1771340189443,6.20936071,83.33,83.241,3.94703523]
[1771340189643,3.7926238,83.332,83.26,6.20936071]
[1771340189849,3.7926238,83.319,83.241,3.94703523]
[1771340190252,3.7926238,83.319,83.26,6.20936071]
[1771340190440,3.7926238,83.319,83.24,6.20936071]
[1771340190848,3.7926238,83.319,83.175,11.99]
[1771340190849,3.7926238,83.299,83.211,3.94703523]
[1771340191043,3.7926238,83.279,83.211,3.94703523]
[1771340191349,10.8136,83.274,83.211,3.94703523]
[1771340191543,3.7926238,83.279,83.211,3.94703523]
[1771340191742,3.7926238,83.299,83.211,3.94703523]
[1771340192552,10.8153,83.261,83.211,3.94703523]
[1771340192756,3.7926238,83.277,83.211,3.94703523]
[1771340193144,10.8153,83.262,83.211,3.94703523]
[1771340193551,10.8141,83.271,83.211,3.94703523]
[1771340193752,3.7926238,83.277,83.211,3.94703523]
[1771340194745,10.8176,83.244,83.2,6.20936071]
[1771340194952,3.7926238,83.277,83.201,3.94703523]
[1771340195653,3.7926238,83.259,83.181,3.94703523]
[1771340195854,6.20936071,83.27,83.201,3.94703523]
[1771340196053,3.7926238,83.281,83.201,3.94703523]
[1771340196054,3.7926238,83.314,83.241,3.94703523]
[1771340196653,3.7926238,83.309,83.241,3.94703523]
[1771340197456,3.7926238,83.309,83.169,21.6544]
[1771340197457,3.7926238,83.307,83.219,3.94703523]
[1771340197666,3.7926238,83.289,83.219,3.94703523]
[1771340198249,3.7926238,83.289,83.21,6.20936071]
[1771340198456,3.7926238,83.289,83.211,3.94703523]
[1771340198651,3.7926238,83.284,83.211,3.94703523]
[1771340199363,168.1508,83.305,83.183,3.94703523]
[1771340199364,3.7926238,83.249,83.183,3.94703523]
[1771340199551,3.7926238,83.249,83.17,6.20936071]
[1771340199861,3.7926238,83.249,83.171,3.94703523]
[1771340200058,10.00198451,83.23,83.16,6.20936071]
[1771340200250,6.20936071,83.24,83.161,3.94703523]
[1771340200450,10.00198451,83.24,83.161,3.94703523]
[1771340200668,10.8199,83.226,83.161,3.94703523]
[1771340200857,10.00198451,83.24,83.161,3.94703523]
[1771340201258,10.8188,83.235,83.165,3.94703523]
[1771340201457,10.00198451,83.24,83.165,3.94703523]
[1771340201458,3.7926238,83.239,83.165,3.94703523]
[1771340201657,10.8176,83.243,83.181,3.94703523]
[1771340201959,3.7926238,83.259,83.181,3.94703523]
[1771340202160,3.7926238,83.259,83.15,6.20936071]
[1771340202161,6.20936071,83.26,83.2,6.20936071]
[1771340202356,3.7926238,83.28,83.203,3.94703523]
[1771340202666,168.1071,83.327,83.202,3.94703523]
[1771340202961,168.1071,83.327,83.145,168.4726]
[1771340202962,3.7926238,83.299,83.23,6.20936071]
[1771340203263,3.7926238,83.319,83.232,3.94703523]
[1771340203460,3.7926238,83.319,83.251,3.94703523]
[1771340204357,6.20936071,83.34,83.253,3.96562204]
[1771340204568,6.20936071,83.34,83.27,6.20936071]
[1771340205062,10.14512211,83.34,83.27,6.20936071]
[1771340205268,3.9357614,83.339,83.27,6.20936071]
[1771340206353,3.9357614,83.339,83.253,3.96562204]
[1771340207166,3.9357614,83.339,83.27,6.20936071]
[1771340207959,10.808,83.318,83.27,6.20936071]
[1771340208661,10.808,83.318,83.253,3.96562204]
[1771340208662,6.20936071,83.31,83.253,3.96562204]
[1771340209164,3.9357614,83.329,83.253,3.96562204]
[1771340209368,3.9357614,83.309,83.231,3.96562204]
[1771340209962,3.9357614,83.285,83.211,3.96562204]
[1771340210375,3.9357614,83.285,83.151,168.4594]
[1771340210376,10.8076,83.321,83.26,10.8153]
[1771340210557,168.0044,83.377,83.251,3.96562204]
[1771340210558,6.20936071,83.33,83.27,6.20936071]
[1771340210765,3.9357614,83.329,83.251,3.96562204]
[1771340211476,10.8111,83.294,83.251,3.96562204]
[1771340211667,3.9357614,83.329,83.251,3.96562204]
[1771340211858,3.9357614,83.329,83.262,3.96562204]
[1771340212062,3.9357614,83.329,83.27,6.20936071]
[1771340212570,10.8072,83.324,83.27,6.20936071]
[1771340212763,3.9357614,83.329,83.27,6.20936071]
[1771340213168,10.8073,83.323,83.27,6.20936071]
[1771340213670,3.9357614,83.329,83.27,6.20936071]
[1771340213874,10.8084,83.314,83.27,6.20936071]
[1771340214072,3.9357614,83.329,83.27,6.20936071]
[1771340214275,3.68348574,83.349,83.271,3.64490215]
[1771340215082,3.68348574,83.349,83.29,9.85426286]
[1771340215083,10.8045,83.345,83.29,9.85426286]
[1771340215372,3.68348574,83.369,83.31,6.20936071]
[1771340215573,3.68348574,83.369,83.253,36.14]
[1771340215574,10.7989,83.388,83.33,6.20936071]
[1771340215870,6.20936071,83.4,83.33,6.20936071]
[1771340215871,3.68348574,83.399,83.33,6.20936071]
[1771340216073,10.7998,83.381,83.33,6.20936071]
[1771340216377,3.68348574,83.419,83.35,6.20936071]
[1771340216764,10.7975,83.399,83.35,6.20936071]
[1771340216962,9.89284645,83.44,83.351,3.64490215]
[1771340217167,10.7951,83.417,83.37,6.20936071]
[1771340217372,3.68348574,83.436,83.351,3.64490215]
[1771340217675,10.7963,83.408,83.351,3.64490215]
[1771340218071,3.68348574,83.429,83.351,3.64490215]
[1771340218269,10.7995,83.383,83.35,6.16320468]
[1771340218579,3.68348574,83.403,83.33,6.16320468]
[1771340219077,3.68348574,83.403,83.331,3.64490215]
[1771340220177,3.68348574,83.403,83.26,36.14]
[1771340220178,3.68348574,83.389,83.31,9.80810683]
[1771340220371,9.84669042,83.41,83.331,3.64490215]
[1771340220678,3.68348574,83.409,83.331,3.64490215]
[1771340220881,3.68348574,83.409,83.32,6.16320468]
[1771340221072,167.9057,83.426,83.32,6.16320468]
[1771340221073,3.68348574,83.389,83.32,6.16320468]
[1771340221374,3.68348574,83.409,83.34,6.16320468]
[1771340221774,10.7979,83.396,83.34,6.16320468]
[1771340221978,3.68348574,83.409,83.34,6.16320468]
[1771340222465,10.7985,83.391,83.34,6.16320468]
[1771340222670,3.68348574,83.409,83.341,3.64490215]
[1771340222869,6.16320468,83.43,83.36,6.16320468]
[1771340222870,3.68348574,83.43,83.36,6.16320468]
[1771340223071,3.68348574,83.419,83.34,9.80810683]
[1771340223283,3.68348574,83.419,83.341,3.64490215]
[1771340223665,3.68348574,83.419,83.36,6.16320468]
[1771340223864,3.68348574,83.419,83.341,3.64490215]
[1771340224475,10.7993,83.385,83.341,3.64490215]
[1771340224777,3.68348574,83.418,83.341,3.64490215]
[1771340225167,3.68348574,83.418,83.36,6.16320468]
[1771340225573,10.7966,83.405,83.36,6.16320468]
[1771340225774,21.5809,83.453,83.339,75.58]
[1771340225775,6.16320468,83.46,83.381,3.64490215]
[1771340225975,3.68348574,83.462,83.35,6.16320468]
[1771340225976,3.68348574,83.462,83.401,3.64490215]
[1771340226184,3.68348574,83.462,83.39,6.16320468]
[1771340226478,6.16320468,83.48,83.39,6.16320468]
[1771340226479,3.68348574,83.459,83.391,3.64490215]
[1771340226679,6.16320468,83.48,83.397,3.64490215]
[1771340227186,3.68348574,83.481,83.411,3.64490215]
[1771340227369,10.7898,83.458,83.411,3.64490215]
[1771340227772,3.68348574,83.481,83.411,3.64490215]
[1771340227972,3.68348574,83.481,83.364,36.14]
[1771340227973,3.68348574,83.473,83.391,3.64490215]
[1771340228167,3.68348574,83.473,83.284,29.6699333]
[1771340228168,3.68348574,83.494,83.431,3.64490215]
[1771340228371,6.16320468,83.48,83.409,3.64490215]
[1771340228585,26.34079158,83.474,83.409,3.64490215]
[1771340228782,26.34079158,83.474,83.4,6.16320468]
[1771340228783,22.65730584,83.474,83.421,3.64490215]
[1771340229078,22.65730584,83.474,83.421,14.43940215]
[1771340229278,22.65730584,83.474,83.422,3.64490215]
[1771340229774,22.65730584,83.474,83.426,3.64490215]
[1771340229968,22.65730584,83.474,83.42,6.16320468]
[1771340230282,22.65730584,83.474,83.422,3.64490215]
[1771340230475,22.65730584,83.474,83.4,6.16320468]
[1771340230476,3.68348574,83.473,83.4,6.16320468]
[1771340230681,10.7909,83.45,83.4,6.16320468]
[1771340230882,3.68348574,83.473,83.4,6.16320468]
[1771340231382,10.7931,83.433,83.39,6.16320468]
[1771340231584,3.68348574,83.454,83.39,6.16320468]
[1771340231876,3.68348574,83.454,83.391,3.64490215]
[1771340232472,3.68348574,83.454,83.39,6.16320468]
[1771340232473,10.7905,83.453,83.392,3.64490215]
[1771340232680,10.7905,83.453,83.41,6.16320468]
[1771340232979,10.7904,83.454,83.41,6.16320468]
[1771340233177,3.68348574,83.473,83.392,3.64490215]
[1771340233987,10.7908,83.451,83.392,14.44310215]
[1771340234377,3.68348574,83.473,83.393,3.8475976]
[1771340234776,3.68348574,83.473,83.393,14.6456976]
[1771340234777,10.7918,83.443,83.393,14.6456976]
[1771340234981,10.7918,83.443,83.394,3.8475976]
[1771340235585,3.91703077,83.454,83.381,3.8475976]
[1771340236580,3.91703077,83.454,83.391,3.8475976]
[1771340236581,10.7915,83.445,83.391,3.8475976]
[1771340236779,22.65730584,83.474,83.391,3.8475976]
[1771340236780,3.91703077,83.469,83.391,3.8475976]
[1771340236972,3.91703077,83.469,83.411,3.8475976]
[1771340237180,22.65730584,83.474,83.412,3.8475976]
[1771340237381,3.91703077,83.473,83.412,3.8475976]
[1771340237879,10.7899,83.457,83.412,3.8475976]
[1771340238087,22.65730584,83.474,83.412,3.8475976]
[1771340238285,22.65730584,83.474,83.43,6.16320468]
[1771340238480,10.7882,83.471,83.43,6.16320468]
[1771340238889,10.7878,83.473,83.43,6.16320468]
[1771340239180,22.65730584,83.474,83.43,6.16320468]
[1771340239485,22.65730584,83.474,83.41,75.52]
[1771340239486,22.65730584,83.474,83.41,3.8475976]
[1771340239785,22.65730584,83.474,83.4,6.16320468]
[1771340239786,3.91703077,83.473,83.401,3.8475976]
[1771340240183,3.91703077,83.473,83.393,10.7981]
[1771340240184,3.91703077,83.469,83.379,3.8475976]
[1771340240385,3.91703077,83.469,83.39,6.16320468]
[1771340240580,10.7945,83.422,83.39,6.16320468]
[1771340240785,3.91703077,83.448,83.39,6.16320468]
[1771340241073,3.91703077,83.448,83.379,3.8475976]
[1771340241473,3.91703077,83.448,83.37,6.16320468]
[1771340241675,3.91703077,83.429,83.36,6.16320468]
[1771340241884,3.91703077,83.429,83.35,6.16320468]
[1771340242281,10.7975,83.399,83.351,14.6511976]
[1771340242873,10.7984,83.392,83.351,3.8475976]
[1771340243275,3.91703077,83.429,83.351,3.8475976]
[1771340243476,10.7972,83.401,83.351,3.8475976]
[1771340243977,10.7982,83.393,83.351,3.8475976]
[1771340245284,10.7995,83.383,83.33,6.16320468]
[1771340245683,3.91703077,83.406,83.33,6.16320468]
[1771340245883,3.91703077,83.387,83.289,3.8475976]
[1771340246083,3.91703077,83.387,83.31,6.16320468]
[1771340246386,10.802,83.364,83.32,6.16320468]
[1771340246586,3.91703077,83.387,83.289,75.52]
[1771340246783,3.91703077,83.379,83.29,10.01080228]
[1771340246980,3.91703077,83.379,83.278,75.52]
[1771340246981,3.91703077,83.379,83.31,6.16320468]
[1771340247291,3.91703077,83.379,83.292,3.8475976]
[1771340247494,167.9682,83.395,83.3,6.16320468]
[1771340247495,3.91703077,83.36,83.3,6.16320468]
[1771340247878,10.8048,83.342,83.3,6.16320468]
[1771340248492,3.91703077,83.36,83.3,6.16320468]
[1771340249685,3.91703077,83.359,83.28,6.16320468]
[1771340250287,3.91703077,83.359,83.225,239.72]
[1771340250288,3.91703077,83.339,83.237,3.8475976]
[1771340250490,3.91703077,83.339,83.26,6.16320468]
[1771340250688,3.91703077,83.318,83.26,6.16320468]
[1771340251790,3.91703077,83.318,83.26,4.68e-06]
[1771340251991,3.91703077,83.318,83.24,6.16320468]
[1771340252585,3.91703077,83.318,83.241,3.8475976]
[1771340253292,3.91703077,83.289,83.22,6.16320468]
[1771340253789,168.1358,83.312,83.181,3.8475976]
[1771340253790,3.91703077,83.259,83.181,3.8475976]
[1771340253992,10.8199,83.226,83.181,3.8475976]
[1771340254190,3.91703077,83.259,83.181,3.8475976]
[1771340254786,3.91703077,83.259,83.15,6.16320468]
[1771340254787,3.91703077,83.251,83.154,3.8475976]
[1771340254988,3.91703077,83.249,83.181,3.8475976]
[1771340255189,168.2074,83.277,83.201,3.8475976]
[1771340255190,3.91703077,83.277,83.201,3.8475976]
[1771340255793,3.91703077,83.277,83.2,6.16320468]
[1771340255998,10.8198,83.227,83.19,6.16320468]
[1771340256198,3.91703077,83.257,83.19,6.16320468]
[1771340256596,10.8194,83.23,83.19,6.16320468]
[1771340256994,3.91703077,83.257,83.18,6.16320468]
[1771340257499,3.91703077,83.257,83.17,6.16320468]
[1771340257688,3.91703077,83.251,83.17,6.16320468]
[1771340257994,3.91703077,83.239,83.159,79.4475976]
[1771340258200,3.91703077,83.239,83.16,3.8475976]
[1771340258990,10.8228,83.204,83.17,6.16320468]
[1771340259389,3.91703077,83.239,83.17,6.16320468]
[1771340259797,3.91703077,83.239,83.17,10.01080228]
[1771340260100,10.82,83.226,83.19,6.16320468]
[1771340260292,3.91703077,83.26,83.21,4.68e-06]
[1771340260497,10.8174,83.245,83.21,4.68e-06]
[1771340261088,10.8158,83.257,83.21,4.68e-06]
[1771340261287,3.91703077,83.26,83.21,4.68e-06]
[1771340262303,10.8158,83.258,83.21,3.84760228]
[1771340263001,10.8169,83.249,83.21,3.84760228]
[1771340263398,3.91703077,83.28,83.21,3.84760228]
[1771340263594,10.8167,83.251,83.21,3.84760228]
[1771340264696,3.91703077,83.28,83.21,3.84760228]
[1771340264903,10.8177,83.243,83.21,4.68e-06]
[1771340265302,10.8173,83.246,83.21,4.68e-06]
[1771340265498,3.85544371,83.286,83.21,4.68e-06]
[1771340265798,10.8134,83.276,83.23,6.16320468]
[1771340266008,3.85544371,83.286,83.22,3.911035]
[1771340266206,3.85544371,83.286,83.23,6.16320468]
[1771340266394,10.8159,83.257,83.23,4.68e-06]
[1771340266594,3.85544371,83.286,83.22,6.16320468]
[1771340266999,3.85544371,83.268,83.21,6.16320468]
[1771340267397,3.85544371,83.268,83.21,4.68e-06]
[1771340268101,10.819,83.233,83.21,4.68e-06]
[1771340268902,10.8166,83.251,83.21,4.68e-06]
[1771340269303,10.8166,83.251,83.21,3.91273626]
[1771340270105,3.85544371,83.268,83.21,4.68e-06]
[1771340270408,3.85544371,83.268,83.23,6.16320468]
[1771340270813,3.85544371,83.268,83.23,4.68e-06]
[1771340271307,10.8164,83.253,83.23,4.68e-06]
[1771340271712,3.85544371,83.268,83.21,6.16320468]
[1771340271912,3.85544371,83.268,83.19,6.16320468]
[1771340272308,3.63757685,83.268,83.191,3.95675589]
[1771340272912,10.8192,83.231,83.191,3.95675589]
[1771340273724,3.63757685,83.268,83.191,3.95675589]
[1771340274016,3.63757685,83.259,83.19,6.16320468]
[1771340274219,10.8214,83.215,83.19,6.16320468]
[1771340274413,3.63757685,83.238,83.17,6.16320468]
[1771340274716,3.63757685,83.238,83.171,3.95675589]
[1771340274920,3.63757685,83.238,83.18,6.16320468]
[1771340276125,3.63757685,83.258,83.181,3.95675589]
[1771340277021,3.63757685,83.258,83.17,75.6]
[1771340277022,3.63757685,83.258,83.201,3.95675589]
[1771340277219,3.63757685,83.258,83.2,6.16320468]
[1771340277220,10.8201,83.224,83.2,6.16320468]
[1771340277825,3.63757685,83.258,83.19,6.16320468]
[1771340278024,3.63757685,83.258,83.182,3.95675589]
[1771340278524,3.63757685,83.255,83.182,3.95675589]
[1771340279023,10.8189,83.234,83.182,3.95675589]
[1771340279223,3.63757685,83.255,83.2,6.18895483]
[1771340279525,3.63757685,83.278,83.22,6.18895483]
[1771340279922,10.8151,83.263,83.22,6.18895483]
[1771340280124,3.63757685,83.278,83.22,6.18895483]
[1771340280318,10.816,83.256,83.22,6.18895483]
[1771340280524,3.63757685,83.278,83.219,3.95675589]
[1771340280720,25.26397685,83.278,83.21,6.18895483]
[1771340280925,3.63757685,83.277,83.2,10.14571072]
[1771340281427,240.14,83.368,83.181,3.95675589]
[1771340281428,3.63757685,83.249,83.181,3.95675589]
[1771340281627,3.63757685,83.249,83.18,6.18895483]
[1771340282014,3.63757685,83.231,83.162,3.95675589]
[1771340283425,10.8236,83.197,83.162,3.95675589]
[1771340283622,3.63757685,83.231,83.162,3.95675589]
[1771340284131,10.8227,83.205,83.162,3.95675589]
[1771340284725,3.63757685,83.231,83.162,14.78475589]
[1771340284726,10.8216,83.213,83.162,14.78475589]
[1771340285029,10.8216,83.213,83.18,6.18895483]
[1771340285229,10.8216,83.213,83.163,3.95675589]
[1771340285230,3.63757685,83.231,83.163,3.95675589]
[1771340285430,10.8225,83.206,83.163,3.95675589]
[1771340285626,3.63757685,83.231,83.163,3.95675589]
[1771340286828,10.8215,83.213,83.164,10.8278]
[1771340287129,3.63757685,83.231,83.163,3.95675589]
[1771340287322,10.8225,83.206,83.163,14.78475589]
[1771340287524,3.63757685,83.25,83.181,3.95675589]
[1771340287720,3.63757685,83.25,83.2,6.18895483]
[1771340288021,10.816,83.256,83.201,3.95675589]
[1771340288219,3.63757685,83.279,83.22,6.18895483]
[1771340288624,3.63757685,83.279,83.201,3.95675589]
[1771340289326,10.8179,83.242,83.201,3.95675589]
[1771340290228,10.8166,83.251,83.201,3.95675589]
[1771340290628,3.63757685,83.279,83.22,6.18895483]
[1771340291621,3.63757685,83.279,83.201,3.95675589]
[1771340291828,6.18895483,83.28,83.128,240.26]
[1771340291829,3.63757685,83.259,83.18,6.18895483]
[1771340292225,3.63757685,83.235,83.18,6.18895483]
[1771340292822,10.8207,83.22,83.18,6.18895483]
[1771340293133,3.63757685,83.235,83.18,6.18895483]
[1771340293332,10.8206,83.221,83.18,6.18895483]
[1771340295229,3.63757685,83.235,83.18,6.18895483]
[1771340296131,3.63757685,83.235,83.181,10.8257]
[1771340296833,10.8191,83.232,83.181,10.8257]
[1771340297029,21.6315,83.258,83.2,6.18895483]
[1771340297030,3.65693876,83.258,83.2,6.18895483]
[1771340297237,3.65693876,83.258,83.201,3.66252963]
[1771340298728,10.8171,83.248,83.202,10.8229]
[1771340298932,3.65693876,83.258,83.201,3.66252963]
[1771340299132,27.81475483,83.28,83.22,6.18895483]
[1771340299133,3.65693876,83.279,83.22,6.18895483]
[1771340299737,3.65693876,83.279,83.211,3.66252963]
[1771340300431,3.65693876,83.279,83.2,10.8231]
[1771340300639,3.65693876,83.279,83.21,6.18895483]
[1771340301141,3.65693876,83.277,83.21,6.18895483]
[1771340301736,10.817,83.248,83.21,6.18895483]
[1771340301932,3.65693876,83.277,83.21,5.483e-05]
[1771340302132,3.65693876,83.275,83.21,5.483e-05]
[1771340302337,3.65693876,83.273,83.21,5.483e-05]
[1771340302533,3.65693876,83.269,83.21,5.483e-05]
[1771340303649,10.8173,83.246,83.21,5.483e-05]
[1771340304242,3.65693876,83.269,83.21,3.66258446]
[1771340304946,3.65693876,83.29,83.231,3.66252963]
[1771340305344,10.8142,83.27,83.231,3.66252963]
[1771340306044,10.8131,83.278,83.231,3.66252963]
[1771340306240,3.65693876,83.29,83.231,3.66252963]
[1771340306447,8.71249839,83.316,83.165,29.6699333]
[1771340306448,21.6241,83.287,83.165,29.6699333]
[1771340306648,10.818,83.24,83.2,6.18895483]
[1771340307145,10.8169,83.249,83.2,6.18895483]
[1771340307350,168.0994,83.33,83.2,6.18895483]
[1771340307351,3.86967604,83.292,83.22,6.18895483]
[1771340308052,10.8155,83.259,83.22,6.18895483]
[1771340308649,10.8166,83.251,83.22,6.18895483]
[1771340308850,3.86548198,83.275,83.2,6.18895483]
[1771340310455,10.8174,83.246,83.2,6.18895483]
[1771340310747,10.8174,83.246,83.157,36.14]
[1771340310748,3.87341087,83.269,83.18,6.48550506]
[1771340310955,3.87341087,83.244,83.18,17.31120506]
[1771340311551,3.87341087,83.244,83.188,10.8248]
[1771340311849,3.87569495,83.264,83.201,0.29198208]
[1771340312045,3.87569495,83.288,83.22,6.18895483]
[1771340312356,10.69691717,83.318,83.172,12.01]
[1771340312357,3.87569495,83.308,83.24,6.18895483]
[1771340312855,3.87569495,83.308,83.241,0.29198208]
[1771340313047,3.87569495,83.326,83.26,6.18895483]
[1771340313541,10.8113,83.292,83.26,6.18895483]
[1771340313740,3.87569495,83.308,83.26,6.18895483]
[1771340314254,10.8104,83.299,83.26,6.18895483]
[1771340314451,10.8104,83.299,83.211,36.14]
[1771340314452,3.87569495,83.308,83.24,6.18895483]
[1771340314647,10.8132,83.277,83.24,6.18895483]
[1771340314847,3.87569495,83.308,83.24,6.18895483]
[1771340315255,10.8125,83.283,83.234,10.8187]
[1771340315555,10.8125,83.283,83.24,6.18895483]
[1771340316852,10.8114,83.292,83.24,6.18895483]
[1771340317253,3.87569495,83.308,83.24,6.18895483]
[1771340318255,10.8125,83.283,83.24,6.18895483]
[1771340319156,10.8114,83.292,83.241,10.8178]
[1771340319357,3.87569495,83.308,83.26,6.18895483]
[1771340320359,10.811,83.294,83.26,6.18895483]
[1771340320753,3.87569495,83.308,83.24,6.18895483]
[1771340320950,10.8119,83.287,83.241,10.8178]
[1771340321151,10.8119,83.287,83.24,6.18895483]
[1771340321152,3.87569495,83.308,83.22,6.18895483]
[1771340321751,10.8125,83.283,83.232,10.819]
[1771340321949,3.87569495,83.308,83.221,0.19222925]
[1771340322350,3.87569495,83.308,83.223,0.19222925]
[1771340322755,10.8115,83.291,83.243,10.8175]
[1771340323056,3.87569495,83.308,83.243,10.8175]
[1771340323455,3.87569495,83.308,83.251,11.00872925]
[1771340323656,3.87569495,83.308,83.241,0.19222925]
[1771340324160,10.811,83.295,83.242,10.8177]
[1771340324359,3.87569495,83.308,83.242,10.8177]
[1771340324947,3.87569495,83.308,83.248,10.8169]
[1771340325256,3.87569495,83.308,83.24,6.18895483]
[1771340325560,10.8118,83.289,83.241,11.00979625]
[1771340326249,3.87569495,83.308,83.246,0.19088813]
[1771340326449,3.92543001,83.329,83.26,6.18895483]
[1771340327052,3.92543001,83.328,83.26,6.18895483]
[1771340327356,3.92543001,83.328,83.172,37.1142869]
[1771340327357,10.8125,83.283,83.24,6.18895483]
[1771340327552,3.92543001,83.3,83.24,6.18895483]
[1771340327949,3.92796128,83.289,83.21,6.18895483]
[1771340328452,3.92796128,83.265,83.21,6.18895483]
[1771340328654,3.92796128,83.265,83.2,6.18895483]
[1771340328955,3.92796128,83.257,83.17,6.37478043]
[1771340329260,3.92796128,83.257,83.1,6.18895483]
[1771340329261,3.92796128,83.239,83.151,0.1858256]
[1771340329556,10.8243,83.192,83.151,0.1858256]
[1771340329753,3.92796128,83.214,83.151,0.1858256]
[1771340330460,3.9291025,83.229,83.152,0.18354316]
[1771340331161,10.8231,83.201,83.152,11.01294316]
[1771340331460,3.9291025,83.229,83.171,0.18354316]
[1771340331657,10.8196,83.228,83.173,0.18354316]
[1771340331860,10.8196,83.228,83.19,6.18895483]
[1771340332761,3.9291025,83.248,83.18,6.18895483]
[1771340333154,3.9291025,83.248,83.181,0.07112455]
[1771340333155,10.8184,83.238,83.181,0.07112455]
[1771340333354,10.8184,83.238,83.182,0.07112455]
[1771340333550,3.98368239,83.269,83.201,0.07112455]